fUSD/lending_fUSD_20260620
["ID","MTS","AMOUNT","RATE_DAILY","PERIOD"]
[425797740,1781902249000,-151.0,0.00028438,2]
[425797737,1781902249000,-1328.27659266,0.00028438,2]
[425797736,1781902249000,-1280.88388877,0.00028438,2]
[425797739,1781902249000,-1428.38747117,0.00028438,2]
[425797741,1781902249000,-1481.2378076,0.00028438,2]
[425797735,1781902249000,-1235.18214925,0.00028438,2]
[425797743,1781902249000,-174.61919141,0.00028438,2]
[425797745,1781902249000,-1592.87721992,0.00028438,2]
[425797744,1781902249000,-1536.04360648,0.00028438,2]
[425797742,1781902249000,-693.39197629,0.00028438,2]
[425797746,1781902249000,-1651.81367706,0.00028438,2]
[425797738,1781902249000,-1377.42282658,0.00028438,2]
[425797768,1781902249000,-152.0,0.00028438,2]
[425797779,1781902249000,-500.0,0.00028438,2]
[425797774,1781902249000,-721.12765534,0.00028438,2]
[425797804,1781902249000,-419.13,0.00028556,30]
[425797807,1781902249000,-894.37889902,0.00028603,2]
[425797806,1781902249000,-419.13,0.00028596,2]
[425797802,1781902249000,-151.0,0.00028548,2]
[425797805,1781902249000,-417.46,0.00028594,2]
[425797809,1781902249000,-652.23666753,0.00028605,2]
[425797808,1781902249000,-151.0,0.00028603,2]
[425797811,1781902249000,-1100.73,0.0002863,7]
[425797810,1781902249000,-1133.26,0.00028628,7]
[425797813,1781902249000,-838.91,0.00028634,7]
[425797801,1781902249000,-894.37889902,0.00028548,2]
[425797814,1781902249000,-868.49,0.00028636,7]
[425797812,1781902249000,-417.46,0.00028634,7]
[425797816,1781902249000,-200.0,0.00028654,2]
[425797817,1781902249000,-872.41,0.00028657,7]
[425797776,1781902249000,-152.0,0.00028438,2]
[425797819,1781902249000,-163.72297317,0.00028658,2]
[425797820,1781902249000,-725.43055597,0.00028658,2]
[425797821,1781902249000,-362.71527798,0.00028658,2]
[425797822,1781902249000,-681.35763899,0.00028658,2]
[425797823,1781902249000,-340.6788195,0.00028658,2]
[425797824,1781902249000,-170.33940975,0.00028658,2]
[425797815,1781902249000,-419.13,0.00028636,7]
[425797800,1781902249000,-419.13,0.00028516,7]
[425797818,1781902249000,-327.44594635,0.00028658,2]
[425797799,1781902249000,-417.46,0.00028514,7]
[425797775,1781902249000,-500.0,0.00028438,2]
[425797803,1781902249000,-417.46,0.00028554,30]
[425797778,1781902249000,-152.0,0.00028438,2]
[425797781,1781902249000,-500.0,0.00028438,2]
[425797777,1781902249000,-500.0,0.00028438,2]
[425797782,1781902249000,-500.0,0.00028438,2]
[425797783,1781902249000,-500.0,0.00028438,2]
[425797784,1781902249000,-500.0,0.00028438,2]
[425797785,1781902249000,-1133.26,0.0002844,30]
[425797788,1781902249000,-868.49,0.00028449,30]
[425797787,1781902249000,-838.91,0.00028447,30]
[425797780,1781902249000,-152.0,0.00028438,2]
[425797790,1781902249000,-872.41,0.00028473,30]
[425797786,1781902249000,-1100.73,0.00028442,30]
[425797796,1781902249000,-894.37889902,0.00028493,2]
[425797797,1781902249000,-151.0,0.00028493,2]
[425797793,1781902249000,-419.13,0.00028477,2]
[425797798,1781902249000,-10115.4179681,0.000285,2]
[425797795,1781902249000,-500.0,0.00028492,3]
[425797792,1781902249000,-879.85,0.00028475,30]
[425797791,1781902249000,-417.46,0.00028475,2]
[425797789,1781902249000,-528.14003583,0.00028463,2]
[425797794,1781902249000,-200.0,0.00028488,2]
[425797850,1781902250000,-868.49,0.00028824,2]
[425797842,1781902250000,-151.0,0.00028768,2]
[425797847,1781902250000,-838.91,0.00028822,2]
[425797848,1781902250000,-894.37889902,0.00028823,2]
[425797851,1781902250000,-10000.0,0.00028824,2]
[425797852,1781902250000,-417.46,0.00028833,2]
[425797845,1781902250000,-1133.26,0.00028817,2]
[425797855,1781902250000,-879.85,0.00028844,2]
[425797853,1781902250000,-419.13,0.00028835,2]
[425797854,1781902250000,-872.41,0.00028842,2]
[425797859,1781902250000,-151.0,0.00028878,2]
[425797856,1781902250000,-417.46,0.00028873,7]
[425797858,1781902250000,-894.37889902,0.00028878,2]
[425797857,1781902250000,-419.13,0.00028874,7]
[425797846,1781902250000,-1100.73,0.00028818,2]
[425797849,1781902250000,-151.0,0.00028823,2]
[425797843,1781902250000,-417.46,0.00028794,30]
[425797831,1781902250000,-10115.4179681,0.000287,2]
[425797841,1781902250000,-894.37889902,0.00028768,2]
[425797860,1781902250000,-497.0,0.00028879,5]
[425797825,1781902250000,-894.37889902,0.00028658,2]
[425797826,1781902250000,-151.0,0.00028658,2]
[425797827,1781902250000,-879.85,0.00028659,7]
[425797828,1781902250000,-5266.54232596,0.00028671,2]
[425797830,1781902250000,-419.13,0.00028675,30]
[425797829,1781902250000,-417.46,0.00028674,30]
[425797844,1781902250000,-419.13,0.00028795,30]
[425797832,1781902250000,-151.0,0.00028712,2]
[425797835,1781902250000,-417.46,0.00028714,2]
[425797834,1781902250000,-151.0,0.00028713,2]
[425797836,1781902250000,-419.13,0.00028715,2]
[425797838,1781902250000,-419.13,0.00028755,7]
[425797837,1781902250000,-417.46,0.00028754,7]
[425797839,1781902250000,-671.26000469,0.00028766,2]
[425797840,1781902250000,-174.0,0.00028767,14]
[425797833,1781902250000,-894.37889902,0.00028713,2]
[425797861,1781902250000,-200.0,0.000289,2]
[425797879,1781902250000,-293.0,0.00028925,30]
[425797863,1781902250000,-200.0,0.000289,2]
[425797884,1781902250000,-419.13,0.00028954,2]
[425797886,1781902250000,-360.0,0.00028964,7]
[425797887,1781902250000,-229.76404657,0.00028986,2]
[425797888,1781902250000,-518.5,0.00028986,2]
[425797890,1781902250000,-155.30723188,0.00028986,2]
[425797891,1781902250000,-158.27996192,0.00028986,2]
[425797889,1781902250000,-217.15233878,0.00028986,2]
[425797885,1781902250000,-187.01237081,0.00028954,2]
[425797892,1781902250000,-490.73396765,0.00028986,2]
[425797896,1781902250000,-9905.59807649,0.00028986,2]
[425797897,1781902250000,-217.15233878,0.00028986,2]
[425797899,1781902250000,-217.15233878,0.00028986,2]
[425797895,1781902250000,-217.15233878,0.00028986,2]
[425797898,1781902250000,-848.46538731,0.00028986,2]
[425797900,1781902250000,-151.0,0.00028986,2]
[425797862,1781902250000,-200.0,0.000289,2]
[425797894,1781902250000,-151.0,0.00028986,2]
[425797883,1781902250000,-417.46,0.00028953,2]
[425797893,1781902250000,-181.08010149,0.00028986,2]
[425797882,1781902250000,-151.0,0.00028933,2]
[425797881,1781902250000,-894.37889902,0.00028933,2]
[425797865,1781902250000,-202.0,0.000289,2]
[425797867,1781902250000,-419.13,0.00028914,30]
[425797868,1781902250000,-165.0,0.00028924,30]
[425797869,1781902250000,-917.0,0.00028924,30]
[425797866,1781902250000,-417.46,0.00028913,30]
[425797870,1781902250000,-1481.0,0.00028924,30]
[425797871,1781902250000,-237.0,0.00028924,30]
[425797864,1781902250000,-189.04816489,0.000289,2]
[425797874,1781902250000,-286.0,0.00028924,30]
[425797873,1781902250000,-649.0,0.00028924,30]
[425797875,1781902250000,-306.0,0.00028924,30]
[425797877,1781902250000,-155.0,0.00028924,30]
[425797876,1781902250000,-173.0,0.00028924,30]
[425797878,1781902250000,-597.0,0.00028924,30]
[425797880,1781902250000,-232.0,0.00028925,30]
[425797872,1781902250000,-228.0,0.00028924,30]
[425797922,1781902251000,-154.0,0.00029,4]
[425797923,1781902251000,-154.0,0.00029,4]
[425797924,1781902251000,-154.0,0.00029,4]
[425797926,1781902251000,-154.0,0.00029,4]
[425797927,1781902251000,-154.0,0.00029,4]
[425797931,1781902251000,-154.0,0.00029,4]
[425797929,1781902251000,-154.0,0.00029,4]
[425797933,1781902251000,-154.0,0.00029,4]
[425797925,1781902251000,-154.0,0.00029,4]
[425797930,1781902251000,-154.0,0.00029,4]
[425797932,1781902251000,-154.0,0.00029,4]
[425797938,1781902251000,-838.91,0.0002901,30]
[425797936,1781902251000,-1133.26,0.00029005,30]
[425797939,1781902251000,-868.49,0.00029011,30]
[425797921,1781902251000,-154.0,0.00029,4]
[425797928,1781902251000,-154.0,0.00029,4]
[425797918,1781902251000,-154.0,0.00029,4]
[425797901,1781902251000,-894.37889908,0.00028988,2]
[425797920,1781902251000,-154.0,0.00029,4]
[425797907,1781902251000,-10115.4179681,0.00029,2]
[425797903,1781902251000,-417.46,0.00028993,7]
[425797905,1781902251000,-4568.0,0.00028995,5]
[425797902,1781902251000,-151.0,0.00028988,2]
[425797906,1781902251000,-3650.0,0.00028995,5]
[425797904,1781902251000,-419.13,0.00028994,7]
[425797908,1781902251000,-180.5987991,0.00029,2]
[425797917,1781902251000,-154.0,0.00029,4]
[425797909,1781902251000,-201.66174538,0.00029,2]
[425797910,1781902251000,-249.89015845,0.00029,2]
[425797914,1781902251000,-250.01993717,0.00029,2]
[425797913,1781902251000,-170.53094272,0.00029,2]
[425797912,1781902251000,-170.53094272,0.00029,2]
[425797915,1781902251000,-190.01730765,0.00029,2]
[425797916,1781902251000,-381.0,0.00029,7]
[425797919,1781902251000,-154.0,0.00029,4]
[425797911,1781902251000,-1111.11,0.00029,30]
[425797934,1781902251000,-154.0,0.00029,4]
[425797937,1781902251000,-1100.73,0.00029006,30]
[425797940,1781902251000,-872.41,0.00029027,30]
[425797962,1781902251000,-417.59,0.00029232,7]
[425797963,1781902251000,-419.32,0.00029232,7]
[425797960,1781902251000,-872.41,0.00029212,7]
[425797964,1781902251000,-151.0,0.0002926,2]
[425797965,1781902251000,-362.16925053,0.00029284,2]
[425797967,1781902251000,-150.0,0.00029311,2]
[425797966,1781902251000,-10115.4179681,0.000293,2]
[425797968,1781902251000,-838.91,0.00029385,2]
[425797970,1781902251000,-238.95370357,0.00029397,2]
[425797969,1781902251000,-868.49,0.00029386,2]
[425797971,1781902251000,-248.50008812,0.00029397,2]
[425797972,1781902251000,-872.41,0.00029397,2]
[425797975,1781902251000,-2602.53467838,0.00029525,2]
[425797973,1781902251000,-879.85,0.00029398,2]
[425797935,1781902251000,-154.0,0.00029,4]
[425797961,1781902251000,-879.85,0.00029213,7]
[425797959,1781902251000,-2000.0,0.000292,2]
[425797974,1781902251000,-1111.11,0.000294,30]
[425797954,1781902251000,-419.13,0.00029193,2]
[425797958,1781902251000,-868.49,0.00029199,7]
[425797941,1781902251000,-879.85,0.00029028,30]
[425797943,1781902251000,-419.13,0.00029033,30]
[425797946,1781902251000,-419.13,0.00029073,2]
[425797947,1781902251000,-417.46,0.00029113,7]
[425797949,1781902251000,-417.46,0.00029153,30]
[425797945,1781902251000,-417.46,0.00029073,2]
[425797948,1781902251000,-419.13,0.00029113,7]
[425797942,1781902251000,-417.46,0.00029033,30]
[425797950,1781902251000,-419.13,0.00029153,30]
[425797951,1781902251000,-409.541189,0.0002916,2]
[425797956,1781902251000,-1100.73,0.00029195,7]
[425797952,1781902251000,-437.34923,0.0002916,2]
[425797953,1781902251000,-417.46,0.00029192,2]
[425797957,1781902251000,-838.91,0.00029198,7]
[425797944,1781902251000,-200.0,0.00029036,2]
[425797955,1781902251000,-1133.26,0.00029194,7]
[425797995,1781902252000,-879.85,0.00029582,30]
[425797996,1781902252000,-200.0,0.00029584,2]
[425797997,1781902252000,-10115.4179681,0.000296,2]
[425798000,1781902252000,-217.15233878,0.00029807,2]
[425798001,1781902252000,-151.0,0.00029808,2]
[425797998,1781902252000,-215.43,0.00029777,7]
[425798004,1781902252000,-150.0,0.00029863,2]
[425798002,1781902252000,-500.0,0.00029848,4]
[425798003,1781902252000,-150.0,0.00029863,2]
[425798006,1781902252000,-150.0,0.00029863,2]
[425798005,1781902252000,-500.0,0.00029863,2]
[425798007,1781902252000,-500.0,0.00029863,2]
[425798009,1781902252000,-500.0,0.00029863,2]
[425797994,1781902252000,-872.41,0.00029582,30]
[425797999,1781902252000,-1111.11,0.000298,30]
[425797991,1781902252000,-838.91,0.00029573,30]
[425797983,1781902252000,-10272.10520532,0.00029534,2]
[425797993,1781902252000,-878.5,0.00029581,30]
[425797976,1781902252000,-204.25757726,0.00029534,2]
[425797977,1781902252000,-204.25757726,0.00029534,2]
[425797981,1781902252000,-151.0,0.00029534,2]
[425797978,1781902252000,-225.18697532,0.00029534,2]
[425797980,1781902252000,-187.78006524,0.00029534,2]
[425797979,1781902252000,-158.27996192,0.00029534,2]
[425797990,1781902252000,-701.21,0.00029572,30]
[425797982,1781902252000,-225.18697532,0.00029534,2]
[425798008,1781902252000,-264.84490402,0.00029863,2]
[425797986,1781902252000,-225.18697532,0.00029534,2]
[425797987,1781902252000,-151.0,0.00029534,2]
[425797988,1781902252000,-150.0,0.00029534,2]
[425797989,1781902252000,-166.22223846,0.00029541,2]
[425797992,1781902252000,-868.49,0.00029574,30]
[425797984,1781902252000,-225.18697532,0.00029534,2]
[425798010,1781902252000,-500.0,0.00029863,2]
[425797985,1781902252000,-848.46538731,0.00029534,2]
[425798012,1781902252000,-500.0,0.00029863,2]
[425798030,1781902252000,-1481.0,0.00029924,30]
[425798036,1781902252000,-155.0,0.00029924,30]
[425798033,1781902252000,-649.0,0.00029924,30]
[425798035,1781902252000,-306.0,0.00029924,30]
[425798037,1781902252000,-597.0,0.00029924,30]
[425798034,1781902252000,-286.0,0.00029924,30]
[425798038,1781902252000,-293.0,0.00029925,30]
[425798039,1781902252000,-232.0,0.00029925,30]
[425798042,1781902252000,-2499.97,0.0003,2]
[425798044,1781902252000,-294.52558294,0.00030034,2]
[425798043,1781902252000,-1542.75470474,0.0003002,7]
[425798041,1781902252000,-167.0,0.0003,14]
[425798040,1781902252000,-247.76882647,0.0003,2]
[425798011,1781902252000,-500.0,0.00029863,2]
[425798046,1781902252000,-208.0,0.00030037,2]
[425798032,1781902252000,-228.0,0.00029924,30]
[425798031,1781902252000,-237.0,0.00029924,30]
[425798045,1781902252000,-500.0,0.00030037,14]
[425798023,1781902252000,-355.29809618,0.00029863,2]
[425798026,1781902252000,-10115.4179681,0.000299,2]
[425798015,1781902252000,-500.0,0.00029863,2]
[425798014,1781902252000,-500.0,0.00029863,2]
[425798017,1781902252000,-500.0,0.00029863,2]
[425798016,1781902252000,-500.0,0.00029863,2]
[425798021,1781902252000,-150.0,0.00029863,2]
[425798020,1781902252000,-500.0,0.00029863,2]
[425798013,1781902252000,-500.0,0.00029863,2]
[425798018,1781902252000,-500.0,0.00029863,2]
[425798022,1781902252000,-500.0,0.00029863,2]
[425798024,1781902252000,-150.0,0.00029863,2]
[425798028,1781902252000,-165.0,0.00029924,30]
[425798027,1781902252000,-193.37149619,0.000299,2]
[425798029,1781902252000,-917.0,0.00029924,30]
[425798019,1781902252000,-500.0,0.00029863,2]
[425798025,1781902252000,-200.0,0.00029889,2]
[425798062,1781902253000,-233.98058451,0.00030136,2]
[425798066,1781902253000,-500.0,0.00030137,3]
[425798068,1781902253000,-150.92644566,0.00030137,7]
[425798072,1781902253000,-528.93,0.00030137,7]
[425798069,1781902253000,-604.25,0.00030137,30]
[425798070,1781902253000,-970.29,0.00030137,7]
[425798074,1781902253000,-1483.09335017,0.00030137,120]
[425798071,1781902253000,-738.18,0.00030137,30]
[425798076,1781902253000,-931.38273338,0.00030137,120]
[425798077,1781902253000,-930.06913667,0.00030137,120]
[425798079,1781902253000,-930.00017284,0.00030137,120]
[425798080,1781902253000,-930.00000864,0.00030137,120]
[425798064,1781902253000,-1306.19,0.00030137,120]
[425798067,1781902253000,-240.0,0.00030137,3]
[425798063,1781902253000,-299.58135636,0.00030137,2]
[425798055,1781902253000,-233.5188934,0.00030082,2]
[425798061,1781902253000,-671.26000469,0.00030135,2]
[425798056,1781902253000,-151.0,0.00030082,2]
[425798060,1781902253000,-200.0,0.00030132,2]
[425798059,1781902253000,-292.13014722,0.0003013,14]
[425798058,1781902253000,-310.0,0.000301,2]
[425798057,1781902253000,-381.0,0.000301,7]
[425798052,1781902253000,-10652.17309792,0.00030082,2]
[425798050,1781902253000,-151.0,0.00030082,2]
[425798051,1781902253000,-233.5188934,0.00030082,2]
[425798053,1781902253000,-233.5188934,0.00030082,2]
[425798049,1781902253000,-194.72792766,0.00030082,2]
[425798054,1781902253000,-848.46538731,0.00030082,2]
[425798048,1781902253000,-158.27996192,0.00030082,2]
[425798047,1781902253000,-233.5188934,0.00030082,2]
[425798065,1781902253000,-188.63223808,0.00030137,30]
[425798075,1781902253000,-957.65466751,0.00030137,120]
[425798073,1781902253000,-1004.01,0.00030137,7]
[425798081,1781902253000,-1662.72,0.00030137,120]
[425798112,1781902253000,-242.15909246,0.0003063,2]
[425798110,1781902253000,-11046.30350254,0.0003063,2]
[425798111,1781902253000,-242.15909246,0.0003063,2]
[425798108,1781902253000,-201.93286098,0.0003063,2]
[425798109,1781902253000,-151.0,0.0003063,2]
[425798107,1781902253000,-158.27996192,0.0003063,2]
[425798106,1781902253000,-242.15909246,0.0003063,2]
[425798103,1781902253000,-1503.72774579,0.00030528,7]
[425798105,1781902253000,-2000.0,0.000306,2]
[425798104,1781902253000,-166.22223846,0.00030541,2]
[425798102,1781902253000,-10115.4179681,0.000305,2]
[425798096,1781902253000,-500.0,0.00030299,20]
[425798097,1781902253000,-151.0,0.00030356,2]
[425798100,1781902253000,-1148.08283276,0.0003048,2]
[425798099,1781902253000,-5266.54232596,0.00030453,2]
[425798078,1781902253000,-930.00345683,0.00030137,120]
[425798098,1781902253000,-1000.0,0.00030394,2]
[425798101,1781902253000,-350.0,0.00030492,30]
[425798083,1781902253000,-1276.0,0.00030183,2]
[425798082,1781902253000,-383.0,0.00030183,2]
[425798086,1781902253000,-152.0,0.00030187,120]
[425798084,1781902253000,-949.22,0.00030183,2]
[425798087,1781902253000,-10115.4179681,0.000302,2]
[425798088,1781902253000,-1111.11,0.000302,30]
[425798085,1781902253000,-215.0,0.00030183,2]
[425798093,1781902253000,-231.2,0.00030239,2]
[425798090,1781902253000,-500.0,0.00030239,2]
[425798091,1781902253000,-455.15415558,0.00030239,2]
[425798094,1781902253000,-500.0,0.00030243,7]
[425798095,1781902253000,-250.0,0.00030279,7]
[425798092,1781902253000,-150.0,0.00030239,2]
[425798089,1781902253000,-621.0,0.00030203,5]
[425798146,1781902254000,-293.0,0.00030925,30]
[425798134,1781902254000,-500.0,0.00030911,21]
[425798140,1781902254000,-649.0,0.00030924,30]
[425798139,1781902254000,-228.0,0.00030924,30]
[425798138,1781902254000,-237.0,0.00030924,30]
[425798141,1781902254000,-286.0,0.00030924,30]
[425798144,1781902254000,-597.0,0.00030924,30]
[425798145,1781902254000,-373.51153508,0.00030924,2]
[425798143,1781902254000,-155.0,0.00030924,30]
[425798154,1781902254000,-273.0,0.00031013,2]
[425798148,1781902254000,-362.16925053,0.00030967,2]
[425798151,1781902254000,-273.0,0.00031013,2]
[425798149,1781902254000,-6350.0,0.00031,3]
[425798150,1781902254000,-150.0,0.00031011,2]
[425798152,1781902254000,-273.0,0.00031013,2]
[425798153,1781902254000,-273.0,0.00031013,2]
[425798135,1781902254000,-165.0,0.00030924,30]
[425798159,1781902254000,-270.88049326,0.00031031,2]
[425798162,1781902254000,-500.0,0.00031041,2]
[425798147,1781902254000,-232.0,0.00030925,30]
[425798136,1781902254000,-917.0,0.00030924,30]
[425798131,1781902254000,-3200.0,0.000309,11]
[425798133,1781902254000,-1982.38318295,0.00030909,2]
[425798113,1781902254000,-848.46538731,0.0003063,2]
[425798114,1781902254000,-242.15909246,0.0003063,2]
[425798115,1781902254000,-151.0,0.0003063,2]
[425798116,1781902254000,-200.0,0.0003068,2]
[425798121,1781902254000,-10115.4179681,0.000308,2]
[425798118,1781902254000,-2767.52929257,0.00030749,2]
[425798120,1781902254000,-16834.80239526,0.000308,3]
[425798117,1781902254000,-157.88934548,0.000307,2]
[425798119,1781902254000,-323.05,0.00030761,120]
[425798137,1781902254000,-1481.0,0.00030924,30]
[425798122,1781902254000,-214.37,0.000308,2]
[425798127,1781902254000,-150.0,0.00030875,2]
[425798128,1781902254000,-150.0,0.00030875,2]
[425798124,1781902254000,-198.16125009,0.0003081,2]
[425798161,1781902254000,-973.89,0.00031041,7]
[425798123,1781902254000,-198.16125009,0.0003081,2]
[425798129,1781902254000,-150.0,0.00030875,2]
[425798125,1781902254000,-1662.72,0.00030822,120]
[425798130,1781902254000,-150.0,0.00030875,2]
[425798132,1781902254000,-151.0,0.00030904,2]
[425798126,1781902254000,-152.0,0.00030843,3]
[425798160,1781902254000,-941.18,0.00031041,7]
[425798142,1781902254000,-306.0,0.00030924,30]
[425798156,1781902254000,-273.0,0.00031013,2]
[425798184,1781902254000,-82942.43096089,0.000313,3]
[425798189,1781902254000,-534.0,0.00031312,2]
[425798186,1781902254000,-534.0,0.00031312,2]
[425798188,1781902254000,-534.0,0.00031312,2]
[425798181,1781902254000,-200.0,0.00031228,2]
[425798191,1781902254000,-534.0,0.00031312,2]
[425798192,1781902254000,-534.0,0.00031312,2]
[425798193,1781902254000,-534.0,0.00031312,2]
[425798198,1781902254000,-316.0,0.000315,2]
[425798199,1781902254000,-201.0,0.000315,2]
[425798195,1781902254000,-1000.0,0.0003149,2]
[425798194,1781902254000,-10115.4179681,0.000314,2]
[425798197,1781902254000,-2000.0,0.000315,2]
[425798196,1781902254000,-1000.0,0.000315,2]
[425798203,1781902254000,-200.0,0.00031541,2]
[425798204,1781902254000,-201.0,0.00031571,2]
[425798201,1781902254000,-621.0,0.00031528,5]
[425798202,1781902254000,-150.0,0.0003154,2]
[425798205,1781902254000,-150.0,0.0003161,2]
[425798155,1781902254000,-273.0,0.00031013,2]
[425798200,1781902254000,-671.26000469,0.00031504,2]
[425798182,1781902254000,-150.0,0.00031233,2]
[425798187,1781902254000,-534.0,0.00031312,2]
[425798190,1781902254000,-534.0,0.00031312,2]
[425798183,1781902254000,-500.0,0.00031299,7]
[425798157,1781902254000,-273.0,0.00031013,2]
[425798185,1781902254000,-1178.77,0.000313,30]
[425798163,1781902254000,-10115.4179681,0.000311,2]
[425798164,1781902254000,-340.0,0.00031143,2]
[425798165,1781902254000,-191.29547668,0.00031176,2]
[425798166,1781902254000,-599.60298507,0.00031177,2]
[425798168,1781902254000,-251.11897888,0.00031178,2]
[425798167,1781902254000,-747.80937859,0.00031177,2]
[425798169,1781902254000,-158.27996192,0.00031178,2]
[425798170,1781902254000,-209.40437684,0.00031178,2]
[425798172,1781902254000,-11455.01673214,0.00031178,2]
[425798158,1781902254000,-273.0,0.00031013,2]
[425798173,1781902254000,-251.11897888,0.00031178,2]
[425798171,1781902254000,-151.0,0.00031178,2]
[425798179,1781902254000,-500.0,0.00031203,6]
[425798176,1781902254000,-251.11897888,0.00031178,2]
[425798180,1781902254000,-303.0,0.00031212,2]
[425798175,1781902254000,-848.46538731,0.00031178,2]
[425798174,1781902254000,-251.11897888,0.00031178,2]
[425798177,1781902254000,-151.0,0.00031178,2]
[425798178,1781902254000,-1000.0,0.000312,7]
[425798234,1781902255000,-273.0,0.00031735,2]
[425798235,1781902255000,-273.0,0.00031735,2]
[425798242,1781902255000,-437.34923,0.00031825,2]
[425798236,1781902255000,-273.0,0.00031735,2]
[425798237,1781902255000,-273.0,0.00031735,2]
[425798239,1781902255000,-200.0,0.00031776,2]
[425798238,1781902255000,-978.0,0.00031763,2]
[425798232,1781902255000,-273.0,0.00031735,2]
[425798241,1781902255000,-409.541189,0.00031825,2]
[425798240,1781902255000,-10115.4179681,0.000318,2]
[425798249,1781902255000,-165.0,0.00031924,30]
[425798245,1781902255000,-1765.01546838,0.00031867,7]
[425798244,1781902255000,-500.0,0.00031839,23]
[425798252,1781902255000,-237.0,0.00031924,30]
[425798248,1781902255000,-1168.57290827,0.00031907,7]
[425798250,1781902255000,-917.0,0.00031924,30]
[425798247,1781902255000,-2130.38454395,0.00031906,7]
[425798253,1781902255000,-228.0,0.00031924,30]
[425798246,1781902255000,-211.16512625,0.00031901,2]
[425798251,1781902255000,-1481.0,0.00031924,30]
[425798233,1781902255000,-273.0,0.00031735,2]
[425798243,1781902255000,-343.445843,0.00031825,2]
[425798231,1781902255000,-273.0,0.00031735,2]
[425798208,1781902255000,-150.0,0.0003161,2]
[425798230,1781902255000,-151.0,0.00031726,2]
[425798254,1781902255000,-649.0,0.00031924,30]
[425798206,1781902255000,-150.0,0.0003161,2]
[425798209,1781902255000,-150.0,0.0003161,2]
[425798207,1781902255000,-150.0,0.0003161,2]
[425798210,1781902255000,-150.0,0.0003161,2]
[425798212,1781902255000,-150.0,0.0003161,2]
[425798217,1781902255000,-167.728,0.00031628,2]
[425798213,1781902255000,-299.0,0.00031628,2]
[425798215,1781902255000,-250.0,0.00031628,2]
[425798211,1781902255000,-150.0,0.0003161,2]
[425798214,1781902255000,-150.153,0.00031628,2]
[425798216,1781902255000,-250.0,0.00031628,2]
[425798218,1781902255000,-150.0,0.00031628,2]
[425798220,1781902255000,-5602.527,0.00031636,2]
[425798225,1781902255000,-2828.49897647,0.00031726,2]
[425798228,1781902255000,-848.46538731,0.00031726,2]
[425798222,1781902255000,-158.4656196,0.00031726,2]
[425798219,1781902255000,-150.2,0.00031628,2]
[425798224,1781902255000,-217.15233878,0.00031726,2]
[425798227,1781902255000,-260.4103811,0.00031726,2]
[425798221,1781902255000,-1662.72,0.00031726,120]
[425798229,1781902255000,-158.46561959,0.00031726,2]
[425798255,1781902255000,-286.0,0.00031924,30]
[425798223,1781902255000,-158.27996192,0.00031726,2]
[425798257,1781902255000,-155.0,0.00031924,30]
[425798286,1781902255000,-10115.4179681,0.000324,2]
[425798287,1781902255000,-2000.0,0.000324,7]
[425798284,1781902255000,-150.0,0.00032345,2]
[425798281,1781902255000,-151.0,0.00032274,2]
[425798289,1781902255000,-165.73596182,0.00032416,2]